Cogmind - Beta 10.2 @@@ ROGUE MODE // 2021.08.29 @ 16:48:41 Player: youngster Result: Destroyed by as-28615 with Assembled F-torch Performance ------------- Evolutions (0) 0 Regions Visited (4) 800 Robots Destroyed (25) 125 Value Destroyed (633) 633 Prototype IDs (15) 300 Alien Tech Used (0) 0 Bonus (0) 0 TOTAL SCORE: 1858 Bonus ------- None Cogmind --------- Core Integrity 0/250 Matter 230/300 Energy 250/250 System Corruption 0% Temperature Cool (44) Movement Rolling (110) Ox3 Location -9/Mines Parts ------- > --- POWER (1) -------- Ion Engine > --- PROPULSION (2) --- Wheel Wheel > --- UTILITY (2) ------ High-capacity Storage Unit High-capacity Storage Unit > --- WEAPON (2) ------- Assault Rifle Rocket Launcher > --- INVENTORY (20) --- Ion Engine Light Treads Light Treads Light Treads Light Treads Improved Heat Sink High-capacity Storage Unit Large Matter Pod (150) Sensor Array Signal Interpreter Improved Terrain Scanner Seismic Analyzer Seismic Analyzer Improved Targeting Computer Shield Generator Assault Rifle Light Assault Rifle Grenade Launcher Datajack Peak State ------------ > --- POWER ------------ Ion Engine > --- PROPULSION ------- Wheel Wheel > --- UTILITY ---------- High-capacity Storage Unit High-capacity Storage Unit > --- WEAPON ----------- Assault Rifle Rocket Launcher > --- INVENTORY -------- Ion Engine Light Treads Light Treads Light Treads Light Treads Improved Heat Sink High-capacity Storage Unit Large Matter Pod Sensor Array Signal Interpreter Improved Terrain Scanner Seismic Analyzer Seismic Analyzer Improved Targeting Computer Shield Generator Assault Rifle Light Assault Rifle Grenade Launcher Rocket Launcher Datajack [Rating: 10] Favorites ----------- Power Ion Engine Engine Ion Engine Propulsion Light Treads Treads Light Treads Wheel Wheel Utility High-capacity Storage Unit Storage High-capacity Storage Unit Processor Seismic Analyzer Weapon Assault Rifle Ballistic Gun Assault Rifle Launcher Rocket Launcher Special Melee Weapon Datajack Build | -11 -10 -10 -10 -9 ------- Run | Scr Mat Min Exi Min Slots Evolved . | . . . . . Power . | . . . . . Propulsion . | . . . . . Utility . | . . . . . Weapon . | . . . . . Parts Attached 30 | 7 17 1 2 3 Power 1 | 1 . . . . Engine 1 | 1 . . . . Core . | . . . . . Reactor . | . . . . . Propulsion 12 | 2 8 1 . 1 Treads 10 | 2 7 1 . . Leg . | . . . . . Wheel 2 | . 1 . . 1 Hover . | . . . . . Flight . | . . . . . Utility 6 | 2 4 . . . Device . | . . . . . Storage 5 | 1 4 . . . Processor 1 | 1 . . . . Hackware . | . . . . . Protection . | . . . . . Artifact . | . . . . . Weapon 11 | 2 5 . 2 2 Energy Gun . | . . . . . Energy Cannon . | . . . . . Ballistic Gun 8 | 2 5 . 1 . Ballistic Cannon . | . . . . . Launcher 2 | . . . . 2 Special Weapon . | . . . . . Impact Weapon . | . . . . . Slashing Weapon . | . . . . . Piercing Weapon . | . . . . . Special Melee Weapon 1 | . . . 1 . Unidentified Prototypes . | . . . . . Parts Lost 4 | . 3 . . 1 Power . | . . . . . Propulsion 1 | . 1 . . . Utility . | . . . . . Weapon 3 | . 2 . . 1 Highest Loss Streak 1 | . 1 . . 1 Average Slot Usage (%) 99 | . 99 100 100 100 Engine 14 | . 14 14 14 14 Treads 20 | . 24 14 14 11 Wheel 7 | . 3 14 14 16 Storage 26 | . 26 28 28 28 Processor 1 | . 1 . . . Ballistic Gun 26 | . 28 28 15 26 Special Melee Weapon 1 | . . . 12 . Naked Turns . | . . . . . Heaviest Build 75 | 12 72 72 72 75 Greatest Support 40 | 40 40 20 10 20 Greatest Overweight (x) 7 | 1 7 7 7 7 Average Overweight (x) 4 | . 2 6 7 6 Largest Inventory Capacity 20 | 6 20 20 20 20 Average Capacity 18 | 5 17 20 20 20 Most Carried 20 | 3 20 20 20 20 Average Carried 14 | 2 12 20 20 19 Final Capacity 20 | 6 20 20 20 20 Final Carried 20 | 3 20 20 20 19 Class Distribution -------------------- 79% | Hauler-Mutant 20% | Mutant Dominant Class ---------------- Hauler-Mutant | -10/Materials Hauler-Mutant | -10/Mines Hauler-Mutant | -10/Exiles Hauler-Mutant | -9/Mines Resources | -11 -10 -10 -10 -9 ----------- Run | Scr Mat Min Exi Min Matter Collected 1056 | 199 815 12 . 30 Remotely . | . . . . . Salvage Created 906 | 10 873 . . 23 Parts 54 | 3 51 . . . Haulers Intercepted 2 | . 2 . . . Recyclers Shooed . | . . . . . Parts Field Recycled . | . . . . . Retrieved Matter . | . . . . . Parts Self-Destructed . | . . . . . Prevented . | . . . . . Kills | -11 -10 -10 -10 -9 ------- Run | Scr Mat Min Exi Min Combat Hostiles Destroyed 24 | . 18 . . 6 Guns 18 | . 18 . . . AOE 6 | . . . . 6 Classes Destroyed 7 | 1 5 . . 1 Tunneler 3 | 1 2 . . . Hauler 2 | . 2 . . . Operator 1 | . 1 . . . Watcher 1 | . 1 . . . Swarmer 3 | . 3 . . . Grunt 15 | . 15 . . . Assembled 6 | . . . . 6 Best Kill Streak 6 | 1 3 . . 6 Combat Bots Only 6 | . 3 . . 6 Max Kills in Single Turn 5 | 1 1 . . 5 Gunslinging . | . . . . . Exploded 5 | . . . . 5 Melee . | . . . . . Uniques/NPCs Destroyed . | . . . . . Combat | -11 -10 -10 -10 -9 -------- Run | Scr Mat Min Exi Min Damage Taken 1266 | . 1067 . . 199 Core 261 | . 186 . . 75 Absorbed by Shields . | . . . . . Core Remaining (%) 100 | 100 . . . . Volleys Fired 102 | 8 87 2 . 5 Largest 2 | 2 2 1 . 1 Hottest 40 | 40 40 20 . 33 Shots Fired 195 | 14 174 2 . 5 Gun 190 | 14 174 2 . . Cannon . | . . . . . Launcher 5 | . . . . 5 Special . | . . . . . Kinetic 190 | 14 174 2 . . Thermal . | . . . . . Explosive 5 | . . . . 5 Electromagnetic . | . . . . . Robot Hit Streak 17 | 8 17 14 . . Robot Miss Streak 4 | 1 3 1 . 4 Penetration Max . | . . . . . Secondary Targets 2 | . 2 . . . Max Gunslinging Chain 1 | . 1 . . . Shots Hit Robots 151 | 12 134 1 4 . Core Hits 63 | 1 46 1 . 15 Critical Hits 1 | 1 . . . . Critical Kills . | . . . . . Critical Parts Destroyed 1 | 1 . . . . Melee Attacks 4 | . . . 4 . Impact . | . . . . . Slashing . | . . . . . Piercing . | . . . . . Sneak Attacks 4 | . . . 4 . Combat Hostiles . | . . . . . Follow-up Attacks . | . . . . . Damage Inflicted 2095 | 121 1457 17 . 500 Guns 1563 | 121 1427 15 . . Cannons . | . . . . . Explosions 500 | . . . . 500 Melee . | . . . . . Ramming 32 | . 30 2 . . Kinetic 1563 | 121 1427 15 . . Thermal . | . . . . . Explosive 500 | . . . . 500 Electromagnetic . | . . . . . Impact . | . . . . . Slashing . | . . . . . Piercing . | . . . . . Highest Corruption . | . . . . . Average Corruption . | . . . . . Corruption Purged . | . . . . . Overload Shots . | . . . . . Overflow Damage . | . . . . . Projectiles . | . . . . . Explosions . | . . . . . Melee . | . . . . . Knockbacks 1 | . 1 . . . Impact 1 | . 1 . . . Kinetic . | . . . . . Secondary . | . . . . . Self-Inflicted Damage 73 | . . . . 73 Shots 3 | . . . . 3 Rammed 5 | . 4 1 . . Targets Rammed 5 | . 4 1 . . Kicked . | . . . . . Crushed . | . . . . . Highest Temperature 28 | . 18 . . 28 Average Temperature 8 | . 6 . . 21 Received Heat Transfer 629 | . 549 . . 80 Siege Activations . | . . . . . Robots Corrupted . | . . . . . Combat Hostiles . | . . . . . Parts Fried . | . . . . . Impact Corruptions . | . . . . . Robots Melted . | . . . . . Combat Hostiles . | . . . . . Parts Melted . | . . . . . Heat Transferred . | . . . . . Parts Sabotaged . | . . . . . Parts Stolen . | . . . . . Parts Stripped . | . . . . . Power Chain Reactions . | . . . . . Missiles Intercepted . | . . . . . Alert | -11 -10 -10 -10 -9 ------- Run | Scr Mat Min Exi Min Peak Influence 321 | 5 321 9 . . Initial 9 | . 3 9 . . Average 100 | 1 154 3 . . Maximum Alert Level 1 | . 1 . . . Low Security (%) 70 | 100 53 100 . 100 Level 1 29 | . 46 . . . Level 2 . | . . . . . Level 3 . | . . . . . Level 4 . | . . . . . Level 5 . | . . . . . High Security . | . . . . . Max Security . | . . . . . Squads Dispatched 5 | . 5 . . . Investigation 3 | . 3 . . . Extermination . | . . . . . Reinforcement 2 | . 2 . . . Assault . | . . . . . Garrison . | . . . . . Intercept . | . . . . . Construction Impeded . | . . . . . Haulers Reinforced . | . . . . . Stealth | -11 -10 -10 -10 -9 --------- Run | Scr Mat Min Exi Min Distress Signals 1 | . 1 . . . Communications Jammed . | . . . . . Distress Signals . | . . . . . Times Spotted 66 | . 56 . . 10 Peak Tracking Total 11 | . 4 . . 11 Tactical Retreats 2 | . 2 . . . Traps | -11 -10 -10 -10 -9 ------- Run | Scr Mat Min Exi Min Traps Triggered 2 | . 2 . . . Indirectly . | . . . . . Trap Hack Attempts . | . . . . . Triggered . | . . . . . Disarmed . | . . . . . Reprogrammed . | . . . . . Reused . | . . . . . Traps Extracted . | . . . . . Installed . | . . . . . Triggered . | . . . . . Machines | -11 -10 -10 -10 -9 ---------- Run | Scr Mat Min Exi Min Machines Disabled 1 | . 1 . . . Max in Single Turn 1 | . 1 . . . Machines Sabotaged . | . . . . . Garrisons Compromised . | . . . . . Overloaded Fab Kills . | . . . . . Fab Network Shutdowns . | . . . . . Hacking | -11 -10 -10 -10 -9 --------- Run | Scr Mat Min Exi Min Machines Accessed 10 | . 8 . 2 . Terminals 5 | . 5 . . . Fabricators . | . . . . . Repair Stations 1 | . 1 . . . Recycling Units 2 | . 2 . . . Scanalyzers . | . . . . . Garrison Access . | . . . . . Total Hacks 26 | . 24 . 2 . Successful 17 | . 15 . 2 . Failed 9 | . 9 . . . Catastrophic 2 | . 2 . . . Database Lockouts . | . . . . . Manual 13 | . 13 . . . Terminals 17 | . 17 . . . Fabricators . | . . . . . Repair Stations 4 | . 4 . . . Recycling Units 3 | . 3 . . . Scanalyzers . | . . . . . Garrison Access . | . . . . . Terminal Hacks 7 | . 5 . 2 . Record 2 | . . . 2 . Prototype ID Bank 1 | . 1 . . . Emergency Access Points 1 | . 1 . . . Unreport Threat 1 | . 1 . . . Dispatch Records 1 | . 1 . . . Zone Layout 1 | . 1 . . . Fabricator Hacks . | . . . . . Repair Station Hacks 4 | . 4 . . . Scan Component 2 | . 2 . . . Repair 2 | . 2 . . . Recycling Unit Hacks . | . . . . . Scanalyzer . | . . . . . Garrison Access Hacks . | . . . . . Unauthorized Hacks 6 | . 6 . . . Terminals 4 | . 4 . . . Assimilate 1 | . 1 . . . Botnet 2 | . 2 . . . Operators 1 | . 1 . . . Fabricators . | . . . . . Repair Stations . | . . . . . Recycling Units 2 | . 2 . . . Tunnel 2 | . 2 . . . Scanalyzers . | . . . . . Garrison Access . | . . . . . Data Cores Recovered . | . . . . . Used . | . . . . . Hacking Detections 6 | . 6 . . . Full Trace Events . | . . . . . Feedback Events . | . . . . . Feedback Blocked . | . . . . . Robot Schematics Acquired . | . . . . . Robots Built . | . . . . . Matter . | . . . . . Time . | . . . . . Total Robot Build Rating . | . . . . . Part Schematics Acquired . | . . . . . Parts Built . | . . . . . Matter . | . . . . . Time . | . . . . . Total Part Build Rating . | . . . . . Parts Repaired 2 | . 2 . . . Time 52 | . 52 . . . Parts Recycled . | . . . . . Recycled Matter . | . . . . . Retrieved Matter . | . . . . . Retrieved Components . | . . . . . Parts Scanalyzed . | . . . . . Part Schematics Acquired . | . . . . . Parts Damaged . | . . . . . Bothacking | -11 -10 -10 -10 -9 ------------ Run | Scr Mat Min Exi Min Used RIF Installer . | . . . . . Robots Hacked 4 | . . . 4 . Non-combat 3 | . . . 3 . Combat 1 | . . . 1 . Robot Hacks Applied 4 | . . . 4 . parse_system 4 | . . . 4 . Relay Couplers Released . | . . . . . Robots Rewired . | . . . . . Allies Hacked . | . . . . . Hacks Repelled . | . . . . . Allies | -11 -10 -10 -10 -9 -------- Run | Scr Mat Min Exi Min Total Allies 4 | . 1 3 . . Largest Group 3 | . 1 3 3 3 Highest-Rated Group 40 | . 10 40 40 40 Highest-Rated Ally 16 | . 10 16 16 16 Total Orders . | . . . . . Ally Attacks 10 | . . . . 10 Total Damage 81 | . . . . 81 Kills 1 | . . . . 1 Allies Corrupted . | . . . . . Allies Melted 1 | . . . . 1 Intel | -11 -10 -10 -10 -9 ------- Run | Scr Mat Min Exi Min Robot Analysis Total . | . . . . . Derelict Logs Recovered 3 | . . 2 . 1 Drone Launches . | . . . . . Drone Recoveries . | . . . . . Exploration | -11 -10 -10 -10 -9 ------------- Run | Scr Mat Min Exi Min Turns Passed 3736 | 117 2107 968 444 100 Spaces Moved 2017 | 58 1008 604 289 58 Core 9 | 9 . . . . Treads 849 | 49 732 68 . . Legs . | . . . . . Wheels 1159 | . 276 536 289 58 Hover . | . . . . . Flight . | . . . . . Fastest Speed 50 | 50 150 150 150 110 Average Speed 161 | 144 169 157 150 143 Slowest Speed 220 | 160 220 220 150 150 Overloaded Moves . | . . . . . Propulsion Burnouts . | . . . . . Robots Hopped . | . . . . . Cave-ins Triggered . | . . . . . Exploration Rate (%) 56 | 5 84 99 80 12 Regions Visited 4 Branch Regions 3 Pre-discovered Areas 3 | . 2 . 1 . Known Exits Taken . | . . . . . Unknown Exits Taken 4 | 1 1 1 1 . Scrap Searched 3 | . . 1 . 2 Spaces Dug . | . . . . . Terrain Destroyed 44 | . . . . 44 Melee . | . . . . . Projectile . | . . . . . AOE 44 | . . . . 44 Terrain Rammed . | . . . . . Walls Destroyed . | . . . . . Machines Disabled . | . . . . . Actions | -11 -10 -10 -10 -9 --------- Run | Scr Mat Min Exi Min Total 2293 | 75 1236 617 295 70 Wait 107 | . 97 7 1 2 Move 2013 | 57 1007 603 288 58 Hop . | . . . . . Pick Up 23 | 3 18 1 . 1 Fast Attach 10 | 7 3 . . . Attach 5 | . 4 . . 1 Detach 1 | . 1 . . . Swap 15 | . 10 1 2 2 Drop 8 | . 5 2 . 1 Fire 102 | 8 87 2 . 5 Melee 4 | . . . 4 . Ram . | . . . . . Kick . | . . . . . Crush 5 | . 4 1 . . Escape Stasis . | . . . . . Rewire . | . . . . . Trap . | . . . . . Miscellaneous . | . . . . . Route ------- -11/Scrapyard -10/Materials (discovered 4 exits: *Mat x2 / [*Min x2]) -10/Mines (discovered 3 exits: *Mat x2 / *Exi) -10/Exiles -9/Mines History --------- Turn | Location | Event 20 | -11/Scrapyard | Discovered new exit (range 15) 118 | -11/Scrapyard | Entered Materials 304 | -10/Materials | Build established: Mutant 435 | -10/Materials | Repaired Lgt. Treads 850 | -10/Materials | Core integrity fell below 50% 962 | -10/Materials | Discovered new exit (range 16) 1104 | -10/Materials | Build established: Hauler-Mutant 1314 | -10/Materials | Discovered new exit (range 8) 1413 | -10/Materials | Repaired Lgt. Treads 1759 | -10/Materials | Discovered new exit (range 16) 1852 | -10/Materials | Discovered new exit (range 8) 2225 | -10/Materials | Entered Mines 2257 | -10/Mines | Identified exit to Materials 2273 | -10/Mines | Deemed a non-threat by the Exiles lab entrance 2273 | -10/Mines | Discovered new exit (range 5) 2527 | -10/Mines | Discovered exit to Materials (range 10) 2557 | -10/Mines | Assisted by bots powering up and referring to "LRC-V3" 2775 | -10/Mines | Learned Materials terminal intel 2814 | -10/Mines | Received a Rocket Launcher from a helpful Derelict 3193 | -10/Mines | Entered Exiles 3193 | -10/Exiles | Accompanied by 3 allies 3228 | -10/Exiles | Met 8R-AWN 3269 | -10/Exiles | Met EX-HEX 3313 | -10/Exiles | Met EX-BIN 3358 | -10/Exiles | Met EX-DEC 3367 | -10/Exiles | Learned location of Zion (-6) 3432 | -10/Exiles | Visited The Gauntlet 3621 | -10/Exiles | Discovered new exit (range 10) 3637 | -10/Exiles | Entered Mines 3637 | -9/Mines | Accompanied by 3 allies 3669 | -9/Mines | Learned Materials trap positions 3702 | -9/Mines | Assembled infested the area 3730 | -9/Mines | Core integrity fell below 20% 3737 | -9/Mines | Destroyed by as-28615 with Assembled F-torch Last Messages --------------- Data stored: Materials trap records. 03686_ Searching scrap... 03686_ Found Flight Unit. 03686_ Found Shield Generator. 03686_ Found Imp. Targeting Computer. 03686_ Found 17 Matter. 03689_ Dropped Mining Laser. 03690_ Acquired Imp. Targeting Computer. 03702_ ALERT: Infestation in the mines, dispatching Demolisher response squad. 03703_ U-05 Engineer destroyed. 03716_ Acquired 10 matter. 03729_ as-59052 destroyed. 03733_ Rocket Launcher destroyed. 03736_ as-24913 destroyed. 03736_ as-22795 destroyed. 03736_ as-24872 destroyed. 03736_ as-71498 destroyed. 03736_ as-14936 destroyed. 03737_ The unstable cave ceiling collapses. Map ----- +----------------------------------------------------+ | | | | | | | | | | | | | | | | | | | | | | | | | | | | | ?????????????????????????????????????????????? | | ?????????????????????????????????????????????? | | ?????????????????????????????????????????????? | | ?????????????????????????????????????????????? | | ???????????????????????????????############??? | | ???????????????????????######### #??? | | ???????????????????????# #### #??? | | ???????????????????????# ##### #### ##?? | | ?????????????????????### #???# % ## ##? | | ????????? ####### #???## %### #? | | ????????? ####?####?# #? | | ???????????????###### @# #??????## ##? | | ????????????????????## #???????## #?? | | ?????????????????????# #???????## #?? | | ?????????????????????# ##????????# ?? | | ?????????????????????# aa #????????## ?? | | ?????????????????????# % ##?????????## #?? | | ?????????????????????## ???????????###?? | | ??????????????????????# ??????????????? | | ??????????????????????## #?????????????? | | ???????????????????????### | #?????????????? | | ??????????????????????????## ##?????????????? | | ???????????????????????????#a##??????????????? | | ???????????????????????????# ####????????????? | | ???????????????????????????# % #????????????? | | ???????????????????????????### #????????????? | | ?????????????????????????????# #????????????? | | ?????????????????????????????# #????????????? | | ????????????????????????????? ????????????? | | ????????????????????????????? ???????????? | | ?????????????????????????????# ??????????? | | ?????????????????????????????## ?????????? | | ???????????????????????????????# ????????? | | ????????????????????????????????| ???????? | | ????????????????????????????????%! #??????? | | ????????????????????????????????! ##??????? | +----------------------------------------------------+ Best States ------------- Heat Dissipation 25 Energy Generation 10 Energy Capacity 250 Matter Stores 300 Matter Capacity 300 Sight Range 16 Terrain Scan Density 60 Evasion (%) 40 Recoil Reduction 2 Item Schematics ----------------- None Robot Schematics ------------------ None Fabricated ------------ Nothing Alien Tech Used ----------------- None Achievements -------------- None Challenges ------------ None Game ------ Seed ThunderRestorationRedirector Manual? 0 Play Time 00:28:37 Cumulative 77.1 hours Start 2021.08.27 @ 22:13:57 End 2021.08.29 @ 16:48:41 Sessions 11 Manual Loads 0 Difficulty Rogue Special Mode None Game No. 52 Rogue 52 Adventurer 0 Explorer 0 Win Type - Total 0 Types 0/0/0/0/0/0/0/0/0 Lore% 52 Gallery% 68 Achievement% 42 Wizard Run 0 Options --------- ASCII 0 Keyboard 1 Movement Vi Keybinds 0 Fullscreen 2 Font 18/Cog Map View 76x50 Tactical HUD 1 Map Filters NONE Filters NONE Steam 0 RUN: f1160cf4-ed19-41a0-be4c-4c622bed7db8